[Event "29th CRO-chT Junior 2020"]
[Site "Cakovec"]
[Date "2020.07.16"]
[Round "5.15"]
[White "Bedic, Noemi"]
[Black "Tomljanovic, Ivano"]
[Result "1/2-1/2"]
[ECO "C62"]
[WhiteElo "1712"]
[BlackElo "1393"]
[Annotator "NA RC"]
[PlyCount "105"]
[EventDate "2020.07.14"]
[EventType "team-tourn"]
[EventCountry "CRO"]
[SourceTitle "playchess.com"]
[Source "ChessBase"]
[SourceQuality "1"]
[TimeControl "5400+30"]

1. e4 {[%emt 0:00:30]} e5 {[%emt 0:00:30]} 2. Nf3 {[%emt 0:00:00]} Nc6 {[%emt 0:00:00]} 3. Bb5 {[%emt 0:00:00]} d6 {[%emt 0:01:00]} 4. d4 {[%emt 0:00:00]} exd4 {[%emt 0:00:30]} 5. Nxd4 {[%emt 0:00:00]} Bd7 {[%emt 0:00:00]} 6. O-O {[%emt 0:00:00]} Nf6 {[%emt 0:00:00]} 7. Bxc6 {[%emt 0:00:00]} Bxc6 {[%emt 0:00:30]} 8. Nxc6 {[%emt 0:00:30]} bxc6 {[%emt 0:00:30]} 9. Qf3 {[%emt 0:00:00]} Qd7 {[%emt 0:01:30]} 10. b3 {[%emt 0:00:00]} Be7 {[%emt 0:00:00]} 11. Bb2 {[%emt 0:00:30]} O-O {[%emt 0:00:00]} 12. h3 {[%emt 0:00:30]} Qe6 {[%emt 0:05:30]} 13. Nd2 {[%emt 0:05:30]} Nd7 {[%emt 0:01:30]} 14. Rfe1 {[%emt 0:03:30]} Bf6 {[%emt 0:01:30]} 15. Bxf6 {[%emt 0:01:30]} Nxf6 {[%emt 0:00:30]} 16. Nc4 {[%emt 0:01:30]} Nd7 {[%emt 0:03:30]} 17. Qc3 {[%emt 0:04:30]} f5 {[%emt 0:04:30]} 18. exf5 {[%emt 0:04:30]} Qxf5 {[%emt 0:00:30]} 19. Re2 {[%emt 0:03:30]} Rf7 {[%emt 0:01:30]} 20. Ne3 {[%emt 0:06:30]} Qc5 {[%emt 0:04:30]} 21. Qxc5 {[%emt 0:02:30]} Nxc5 {[%emt 0:00:00]} 22. Nc4 Nd7 {[%emt 0:01:00]} 23. Rae1 {[%emt 0:03:00]} Kf8 {[%emt 0:01:30]} 24. Na5 {[%emt 0:02:30]} Ne5 {[%emt 0:00:30]} 25. Re4 {[%emt 0:01:30]} c5 {[%emt 0:02:30]} 26. f4 {[%emt 0:02:30]} Ng6 {[%emt 0:00:30]} 27. g3 {[%emt 0:00:30]} Ne7 {[%emt 0:02:30]} 28. Re6 {[%emt 0:07:30]} g6 {[%emt 0:02:30]} 29. Nc4 {[%emt 0:00:30]} Nc6 {[%emt 0:01:30]} 30. c3 {[%emt 0:02:30]} Re7 {[%emt 0:02:30]} 31. Rxe7 Nxe7 {[%emt 0:00:00]} 32. Ne3 {[%emt 0:10:00]} h5 {[%emt 0:05:00]} 33. c4 {[%emt 0:00:30]} Kf7 {[%emt 0:03:30]} 34. Kf2 {[%emt 0:03:30]} a5 {[%emt 0:00:30]} 35. Rb1 {[%emt 0:03:30]} Rb8 {[%emt 0:01:30]} 36. g4 {[%emt 0:01:30]} hxg4 {[%emt 0:01:30]} 37. hxg4 {[%emt 0:00:00]} Rh8 {[%emt 0:00:00]} 38. Kg3 {[%emt 0:00:00]} Kg7 {[%emt 0:02:00]} 39. Rf1 {[%emt 0:01:30]} Kf6 {[%emt 0:05:30]} 40. f5 {[%emt 0:00:30]} gxf5 {[%emt 0:02:30]} 41. Nxf5 {[%emt 0:00:30]} Nxf5+ {[%emt 0:00:30]} 42. Rxf5+ {[%emt 0:01:30]} Kg6 {[%emt 0:00:30]} 43. Rf2 {[%emt 0:03:30]} Re8 {[%emt 0:01:30]} 44. Kf4 {[%emt 0:02:30]} Rf8+ {[%emt 0:00:30]} 45. Ke3 {[%emt 0:00:00]} Rxf2 {[%emt 0:01:30]} 46. Kxf2 {[%emt 0:00:00]} Kg5 {[%emt 0:00:00]} 47. Kg3 {[%emt 0:01:30]} c6 {[%emt 0:00:00]} 48. a3 {[%emt 0:00:30]} d5 {[%emt 0:00:30]} 49. cxd5 {[%emt 0:00:30]} cxd5 {[%emt 0:00:00]} 50. Kf3 {[%emt 0:00:00]} d4 {[%emt 0:02:00]} 51. Ke4 {[%emt 0:00:00]} Kxg4 {[%emt 0:00:30]} 52. Kd3 {[%emt 0:00:30]} Kf4 {[%emt 0:00:30]} 53. b4 {[%emt 0:01:30]} 1/2-1/2

[Event "29th CRO-chT Junior 2020"]
[Site "Cakovec"]
[Date "2020.07.16"]
[Round "5.16"]
[White "Kresic, Vid"]
[Black "Jaksic, Josip"]
[Result "1/2-1/2"]
[ECO "D02"]
[WhiteElo "1216"]
[BlackElo "1616"]
[Annotator "NA RC"]
[PlyCount "117"]
[EventDate "2020.07.14"]
[EventType "team-tourn"]
[EventCountry "CRO"]
[SourceTitle "playchess.com"]
[Source "ChessBase"]
[SourceQuality "1"]
[TimeControl "5400+30"]

1. d4 {[%emt 0:00:30]} Nf6 {[%emt 0:00:30]} 2. Nf3 {[%emt 0:00:00]} e6 {[%emt 0:00:00]} 3. Bf4 {[%emt 0:00:00]} d5 {[%emt 0:00:00]} 4. e3 {[%emt 0:01:30]} Bd6 {[%emt 0:00:30]} 5. Bg3 {[%emt 0:00:00]} O-O {[%emt 0:01:30]} 6. Nc3 {[%emt 0:01:00]} a6 {[%emt 0:01:30]} 7. Bxd6 {[%emt 0:04:30]} Qxd6 {[%emt 0:00:30]} 8. Bd3 {[%emt 0:00:30]} b6 {[%emt 0:06:30]} 9. Ne2 {[%emt 0:03:30]} c5 {[%emt 0:00:30]} 10. c3 {[%emt 0:01:30]} Nc6 {[%emt 0:00:30]} 11. Ng3 {[%emt 0:00:30]} e5 {[%emt 0:07:30]} 12. dxe5 {[%emt 0:00:30]} Nxe5 {[%emt 0:01:30]} 13. Be2 {[%emt 0:02:30]} Qc7 {[%emt 0:04:30]} 14. O-O {[%emt 0:02:30]} Bb7 {[%emt 0:07:30]} 15. Nxe5 {[%emt 0:01:30]} Qxe5 {[%emt 0:00:30]} 16. Bf3 {[%emt 0:00:30]} Rfd8 {[%emt 0:05:30]} 17. Qb3 {[%emt 0:00:30]} Rd6 {[%emt 0:00:30]} 18. Rad1 {[%emt 0:02:30]} Rad8 {[%emt 0:01:30]} 19. Rfe1 {[%emt 0:01:30]} h6 {[%emt 0:05:30]} 20. a4 {[%emt 0:03:30]} Ne4 {[%emt 0:01:30]} 21. Bxe4 {[%emt 0:02:30]} dxe4 {[%emt 0:00:30]} 22. Rxd6 {[%emt 0:00:00]} Rxd6 {[%emt 0:00:30]} 23. a5 {[%emt 0:00:00]} b5 {[%emt 0:01:30]} 24. Rd1 {[%emt 0:02:30]} c4 {[%emt 0:02:30]} 25. Qc2 {[%emt 0:00:30]} Rg6 {[%emt 0:04:30]} 26. Rd4 {[%emt 0:02:30]} Qg5 {[%emt 0:03:30]} 27. Qe2 {[%emt 0:02:30]} Qe5 {[%emt 0:11:30]} 28. Qh5 {[%emt 0:01:30]} Qc7 {[%emt 0:03:30]} 29. Qh4 {[%emt 0:02:30]} Qxa5 {[%emt 0:03:30]} 30. Qd8+ {[%emt 0:00:30]} Qxd8 {[%emt 0:00:30]} 31. Rxd8+ {[%emt 0:00:30]} Kh7 {[%emt 0:00:00]} 32. Nf5 {[%emt 0:00:30]} Rf6 {[%emt 0:02:00]} 33. Nd4 {[%emt 0:01:30]} g5 {[%emt 0:06:53]} 34. Rb8 {[%emt 0:02:30]} Bd5 {[%emt 0:02:38]} 35. Rd8 {[%emt 0:00:30]} Bc6 {[%emt 0:01:37]} 36. Rb8 {[%emt 0:01:30]} Bd7 {[%emt 0:00:46]} 37. Rb7 {[%emt 0:01:30]} Rd6 {[%emt 0:03:47]} 38. h3 {[%emt 0:00:30]} Kg6 {[%emt 0:00:37]} 39. Kf1 {[%emt 0:00:30]} f5 {[%emt 0:05:08]} 40. Ke2 {[%emt 0:00:30]} f4 {[%emt 0:01:12]} 41. Ra7 {[%emt 0:03:30]} Kf6 {[%emt 0:01:42]} 42. Ra8 {[%emt 0:01:30]} Kf7 {[%emt 0:00:22]} 43. Ra7 {[%emt 0:00:30]} Kg6 {[%emt 0:00:33]} 44. Ra8 {[%emt 0:00:30]} Kg7 {[%emt 0:01:31]} 45. Ra7 {[%emt 0:00:30]} Kf7 {[%emt 0:00:19]} 46. Rb7 {[%emt 0:00:30]} Kg6 {[%emt 0:00:23]} 47. Rb8 {[%emt 0:01:30]} Rf6 {[%emt 0:00:36]} 48. Rb7 {[%emt 0:00:00]} Rd6 {[%emt 0:01:50]} 49. Ra7 {[%emt 0:00:00]} Kf6 {[%emt 0:00:28]} 50. Ra8 {[%emt 0:01:30]} Ke7 {[%emt 0:00:38]} 51. Rh8 {[%emt 0:00:30]} Rf6 {[%emt 0:00:28]} 52. Ra8 {[%emt 0:01:30]} Rg6 {[%emt 0:01:04]} 53. g3 {[%emt 0:00:30]} fxg3 {[%emt 0:01:03]} 54. fxg3 {[%emt 0:00:30]} Bxh3 {[%emt 0:00:00]} 55. Ra7+ {[%emt 0:00:30]} Bd7 {[%emt 0:00:08]} 56. Nf5+ {[%emt 0:00:30]} Kd8 {[%emt 0:00:48]} 57. Ra8+ {[%emt 0:00:30]} Kc7 {[%emt 0:00:08]} 58. Ra7+ {[%emt 0:00:30]} Kd8 {[%emt 0:01:21]} 59. Ra8+ {[%emt 0:00:30]} 1/2-1/2

[Event "29th CRO-chT Junior 2020"]
[Site "Cakovec"]
[Date "2020.07.16"]
[Round "5.19"]
[White "Troselj, Ivan"]
[Black "Vuk, Sebastijan"]
[Result "1-0"]
[ECO "D02"]
[WhiteElo "1857"]
[BlackElo "1382"]
[Annotator "NA RC"]
[PlyCount "105"]
[EventDate "2020.07.14"]
[EventType "team-tourn"]
[EventCountry "CRO"]
[SourceTitle "playchess.com"]
[Source "ChessBase"]
[SourceQuality "1"]
[TimeControl "5400+30"]

{[%evp 8,91,10,14,6,0,12,-1,48,46,53,40,80,9,157,140,153,112,120,125,202,188,211,137,135,108,126,66,85,43,57,22,21,25,69,59,32767,32767,32767,32767,-16,-203,0,0,0,-20,46,0,0,-73,9,32767,32767,32767,32767,0,0,0,0,0,0,32767,32767,32767,32767,0,0,0,0,32767,32767,-8,0,0,32767,32767,32767,32767,32767,32767,32767,-8,0,-8,253,365]} 1. c3 {[%emt 0:00:30]} Nf6 {[%emt 0:00:30]} 2. d4 {[%emt 0:00:00]} d5 {[%emt 0:00:30]} 3. Nf3 {[%emt 0:00:00]} g6 {[%emt 0:00:30]} 4. Bf4 {[%emt 0:01:30]} Bg7 {[%emt 0:00:30]} 5. e3 {[%emt 0:00:30]} O-O {[%emt 0:01:30]} 6. Bd3 {[%emt 0:00:30]} Nc6 {[%emt 0:03:30] D02: 1 d4 d5 2 Nf3 sidelines, including 2...Nf6 3 g3 and 2...Nf6 3 Bf4.} 7. Nbd2 {[%emt 0:00:30]} Bg4 {[%emt 0:01:30]} 8. h3 {[%emt 0:00:00]} Bxf3 {[%emt 0:00:30]} 9. Nxf3 {[%emt 0:01:00] [#]} Nd7 $146 {[%emt 0:00:30]} ({Predecessor:} 9... Ne4 10. Bxe4 dxe4 11. Nd2 f5 12. Qb3+ Kh8 13. Qxb7 e5 14. Qxc6 exf4 15. exf4 Re8 {1-0 (34) Japiassu,G (1522)-Deobrochinski,V (1191) Florianopolis 2020}) 10. O-O {[%emt 0:01:30]} (10. Qb3 $16) 10... f6 {[%emt 0:02:30]} (10... e5 $11 {keeps the balance.} 11. dxe5 Ncxe5) 11. Qb3 {[%emt 0:01:30]} Nb6 {[%emt 0:06:30]} 12. e4 {[%emt 0:00:30]} e5 {[%emt 0:05:30]} 13. dxe5 {[%emt 0:05:30]} fxe5 {[%emt 0:02:30]} (13... Nxe5 $16 {was worth a try.} 14. Nxe5 fxe5) 14. Bg5 {[%emt 0:00:30]} Bf6 {[%emt 0:00:30]} 15. Bxf6 {[%emt 0:00:30]} Rxf6 {[%emt 0:03:30]} 16. exd5 {[%emt 0:01:30]} Qxd5 {[%emt 0:01:30]} 17. c4 {[%emt 0:01:30]} (17. Qc2 $16) 17... Qf7 {[%emt 0:05:30]} 18. Ng5 {[%emt 0:14:30]} Nd4 {[%emt 0:04:30]} 19. Qc3 {[%emt 0:01:30]} Qe7 {[%emt 0:06:30]} 20. Rae1 {[%emt 0:02:30]} Re8 {[%emt 0:10:30]} 21. c5 {[%emt 0:02:30]} Rc6 {[%emt 0:06:30]} 22. b4 {[%emt 0:01:30]} Qxg5 {[%emt 0:05:30]} 23. f4 {[%emt 0:00:00]} Qd8 {[%emt 0:07:30]} ({But not} 23... Nd5 $6 24. Qc4 $16) 24. Be4 $2 {[%emt 0:06:00] [#]} (24. Rxe5 $11 {and White is okay.} Rxe5 25. fxe5) 24... Rf6 $2 {[%emt 0:08:38]} ({Stronger than} 24... Nd5 25. Qc4 $16) (24... Na4 $1 $19 {[%cal Ra4c3]} 25. Qc4+ Rce6 26. Bxb7 c6 27. fxe5 Kh8) 25. cxb6 {[%emt 0:00:30]} axb6 {[%emt 0:03:25]} 26. Bd3 {[%emt 0:05:30] [#]} Nc6 {[%emt 0:06:46]} ({Black should try} 26... e4 $1 $11 {[%mdl 512]}) 27. fxe5 {[%emt 0:05:30]} Rxf1+ {[%emt 0:01:35]} 28. Kxf1 {[%emt 0:04:30]} (28. Bxf1 $11 Qd4+ 29. Qxd4 Nxd4 30. Rd1) 28... Rf8+ {[%emt 0:01:00]} (28... Rxe5 $15 29. Rxe5 Nxe5 30. Qxe5 Qxd3+ 31. Kg1 Qd1+ 32. Kh2 {[#]} Qd6 $1 {[%mdl 512]} 33. Qxd6 cxd6) 29. Kg1 {[%emt 0:00:00]} Qd4+ {[%emt 0:00:44]} 30. Qxd4 {[%emt 0:00:00]} Nxd4 {[%emt 0:00:05]} 31. Bc4+ {[%emt 0:00:30]} Kg7 {[%emt 0:00:14]} 32. Rd1 {[%emt 0:00:30]} Rd8 {[%emt 0:00:55]} 33. Rf1 {[%emt 0:03:30]} Rf8 {[%emt 0:00:32]} 34. Rd1 {[%emt 0:00:30]} Rd8 {[%emt 0:00:24]} 35. Kf2 {[%emt 0:00:30]} Kf8 {[%emt 0:00:24]} 36. Rd3 {[%emt 0:02:30]} Ke7 {[%emt 0:00:58]} 37. b5 {[%emt 0:05:30]} c5 {[%emt 0:01:07]} 38. bxc6 {[%emt 0:02:30]} bxc6 {[%emt 0:00:17]} 39. Ra3 {[%emt 0:02:30]} b5 {[%emt 0:00:11]} 40. Ra7+ {[%emt 0:00:30]} Rd7 {[%emt 0:01:23]} 41. Rxd7+ {[%emt 0:00:30]} Kxd7 {[%emt 0:00:02]} 42. Bg8 {[%emt 0:00:30]} h6 {[%emt 0:00:21]} 43. Bf7 {[%emt 0:00:30]} g5 {[%emt 0:00:54]} 44. Ke3 {[%emt 0:00:30]} c5 {[%emt 0:00:11]} 45. Ke4 {[%emt 0:04:30]} Kc6 $2 {[%emt 0:01:03]} (45... Ne2 $11 {and Black stays safe.}) 46. Be8+ $18 {[%emt 0:00:30]} Kc7 {[%emt 0:02:43]} 47. Kd5 {[%emt 0:00:30]} Kb6 {[%emt 0:00:16]} 48. e6 {[%emt 0:01:30]} Nxe6 {[%emt 0:00:48]} 49. Kxe6 {[%emt 0:00:00]} Ka5 {[%emt 0:00:22]} 50. Kd5 {[%emt 0:00:00]} Kb6 {[%emt 0:00:48]} 51. g4 {[%emt 0:00:30]} b4 {[%emt 0:00:26]} 52. Kc4 {[%emt 0:00:30]} Ka5 {[%emt 0:00:01]} 53. Kxc5 {[%emt 0:00:30]} 1-0

[Event "29th CRO-chT Junior 2020"]
[Site "Cakovec"]
[Date "2020.07.16"]
[Round "5.20"]
[White "Kristofic, Dino"]
[Black "Zekic, Patrik"]
[Result "1/2-1/2"]
[ECO "C01"]
[WhiteElo "1290"]
[BlackElo "1699"]
[Annotator "NA RC"]
[PlyCount "108"]
[EventDate "2020.07.14"]
[EventType "team-tourn"]
[EventCountry "CRO"]
[SourceTitle "playchess.com"]
[Source "ChessBase"]
[SourceQuality "1"]
[TimeControl "5400+30"]

1. e4 {[%emt 0:00:30]} e6 {[%emt 0:00:30]} 2. d4 {[%emt 0:00:00]} d5 {[%emt 0:00:00]} 3. exd5 {[%emt 0:01:00]} exd5 {[%emt 0:00:00]} 4. Nf3 {[%emt 0:01:30]} Nf6 {[%emt 0:00:30]} 5. Bd3 {[%emt 0:00:30]} Bd6 {[%emt 0:00:30]} 6. O-O {[%emt 0:01:30]} O-O {[%emt 0:00:30]} 7. Bg5 {[%emt 0:01:30]} Bg4 {[%emt 0:00:30]} 8. h3 {[%emt 0:00:30]} Bh5 {[%emt 0:00:30]} 9. Nbd2 {[%emt 0:00:30]} Nbd7 {[%emt 0:00:30]} 10. c3 {[%emt 0:05:30]} c6 {[%emt 0:00:30]} 11. Re1 {[%emt 0:04:30]} Qc7 {[%emt 0:00:30]} 12. Qc2 {[%emt 0:01:30]} Rfe8 {[%emt 0:01:30]} 13. b3 {[%emt 0:18:30]} Bg6 {[%emt 0:25:30]} 14. Bxg6 {[%emt 0:06:30]} hxg6 {[%emt 0:00:30]} 15. c4 {[%emt 0:05:30]} Bf4 {[%emt 0:07:30]} 16. Bxf4 {[%emt 0:03:30]} Qxf4 {[%emt 0:00:30]} 17. g3 {[%emt 0:01:30]} Qc7 {[%emt 0:31:30]} 18. Qc3 {[%emt 0:07:30]} Ne4 {[%emt 0:04:30]} 19. Nxe4 {[%emt 0:00:30]} dxe4 {[%emt 0:01:30]} 20. Ng5 {[%emt 0:00:30]} Nf6 {[%emt 0:00:30]} 21. Re3 {[%emt 0:01:30]} Qd7 {[%emt 0:05:35]} 22. Rae1 {[%emt 0:02:30]} Qf5 {[%emt 0:00:14]} 23. h4 {[%emt 0:05:30]} Ng4 {[%emt 0:03:15]} 24. R3e2 {[%emt 0:06:30]} Re7 {[%emt 0:01:31]} 25. Qc2 {[%emt 0:01:30]} f6 {[%emt 0:09:49]} 26. Nxe4 {[%emt 0:00:30]} Rae8 {[%emt 0:00:18]} 27. Kg2 {[%emt 0:02:37]} Qd7 {[%emt 0:04:09]} 28. f3 {[%emt 0:02:47]} f5 {[%emt 0:00:37]} 29. fxg4 {[%emt 0:00:51]} fxe4 {[%emt 0:00:07]} 30. Rxe4 {[%emt 0:00:16]} Rxe4 {[%emt 0:00:52]} 31. Rxe4 {[%emt 0:00:15]} Rf8 {[%emt 0:00:26]} 32. Qe2 {[%emt 0:02:01]} b6 {[%emt 0:00:30]} 33. Qe3 {[%emt 0:01:07]} a5 {[%emt 0:00:25]} 34. Rf4 {[%emt 0:00:53]} Re8 {[%emt 0:00:10]} 35. Re4 {[%emt 0:00:30]} Rf8 {[%emt 0:00:05]} 36. a4 {[%emt 0:00:32]} b5 {[%emt 0:01:24]} 37. g5 {[%emt 0:02:08]} Kh7 {[%emt 0:00:31]} 38. Qd3 {[%emt 0:01:16]} Qf5 {[%emt 0:00:22]} 39. Qe2 {[%emt 0:01:59]} Qd7 {[%emt 0:00:18]} 40. Qg4 {[%emt 0:02:11]} Qd6 {[%emt 0:00:46]} 41. h5 {[%emt 0:00:51]} Rf5 {[%emt 0:00:33]} 42. hxg6+ {[%emt 0:01:13]} Qxg6 {[%emt 0:00:15]} 43. Qh3+ {[%emt 0:01:17]} Kg8 {[%emt 0:00:04]} 44. Re8+ {[%emt 0:00:17]} Qxe8 {[%emt 0:01:02]} 45. Qxf5 {[%emt 0:00:13]} Qe2+ {[%emt 0:00:07]} 46. Kh3 {[%emt 0:00:49]} Qh5+ {[%emt 0:00:08]} 47. Kg2 {[%emt 0:00:14]} Qe2+ {[%emt 0:00:01]} 48. Qf2 {[%emt 0:00:15]} Qe4+ {[%emt 0:00:05]} 49. Kh2 {[%emt 0:00:34]} Qh7+ {[%emt 0:00:41]} 50. Kg2 {[%emt 0:00:54]} Qe4+ {[%emt 0:00:03]} 51. Kf1 {[%emt 0:00:47]} Qd3+ {[%emt 0:00:31]} 52. Ke1 {[%emt 0:00:22]} bxc4 {[%emt 0:00:45]} 53. bxc4 {[%emt 0:00:32]} Qxc4 {[%emt 0:00:07]} 54. g6 {[%emt 0:00:29]} Qe6+ {[%emt 0:00:16]} 1/2-1/2

[Event "29th CRO-chT Junior 2020"]
[Site "Cakovec"]
[Date "2020.07.16"]
[Round "6.3"]
[White "Tomljanovic, Ivano"]
[Black "Troselj, Ivan"]
[Result "1/2-1/2"]
[ECO "B13"]
[WhiteElo "1393"]
[BlackElo "1857"]
[Annotator "NA RC"]
[PlyCount "57"]
[EventDate "2020.07.14"]
[EventType "team-tourn"]
[EventCountry "CRO"]
[SourceTitle "playchess.com"]
[Source "ChessBase"]
[SourceQuality "1"]
[TimeControl "5400+30"]

{[%evp 8,57,10,14,31,18,39,32,31,6,8,-8,2,-2,32767,32767,32767,32767,-6,-15,32767,32767,32767,32767,32767,32767,6,-48,0,0,38,30,45,53,80,89,88,55,85,106,100,118,107,134,89,64,126,55,40,50,54,50]} 1. e4 {[%emt 0:00:30]} c6 {[%emt 0:02:30]} 2. d4 {[%emt 0:00:30]} d5 {[%emt 0:00:00]} 3. exd5 {[%emt 0:00:30]} cxd5 {[%emt 0:00:00]} 4. Nf3 {[%emt 0:00:30]} Nc6 {[%emt 0:00:00]} 5. Bf4 {[%emt 0:00:30]} Nf6 {[%emt 0:00:00]} 6. c3 {[%emt 0:00:30]} Bg4 {[%emt 0:00:30]} 7. Nbd2 {[%emt 0:00:30]} e6 {[%emt 0:00:30] B13: Caro-Kann: Exchange Variation and Panov-Botvinnik Attack.} 8. Bb5 {[%emt 0:01:30]} Bd6 {[%emt 0:01:30]} 9. Bg3 {[%emt 0:00:30]} O-O {[%emt 0:00:30]} 10. O-O {[%emt 0:01:30] [#]} Bh5 $146 {[%emt 0:02:30]} ({Predecessor:} 10... Bxg3 11. fxg3 Qb6 12. Bxc6 bxc6 13. Qc2 c5 14. Kh1 cxd4 15. Nxd4 Rfc8 16. Qb3 Rab8 {0-1 (36) Bober,T (1159)-Kaluza,M (1379) Iwonicz 2015}) 11. Qc2 {[%emt 0:00:30]} Bg6 {[%emt 0:00:30]} 12. Bd3 {[%emt 0:00:30]} Bxd3 {[%emt 0:00:30]} 13. Qxd3 {[%emt 0:00:30]} Bxg3 {[%emt 0:00:30]} 14. hxg3 {[%emt 0:01:30]} Rb8 {[%emt 0:00:30]} 15. Rab1 {[%emt 0:03:30]} b5 {[%emt 0:01:30]} 16. b4 {[%emt 0:01:30]} Qc7 {[%emt 0:03:30]} ({Better is} 16... a5 $15) 17. Rfe1 {[%emt 0:00:30]} Rfc8 {[%emt 0:01:30]} 18. Nb3 {[%emt 0:00:30]} Ne4 {[%emt 0:03:30]} 19. Nc5 {[%emt 0:01:30]} Nxc5 {[%emt 0:01:30]} 20. dxc5 {[%emt 0:01:30]} Re8 {[%emt 0:02:30]} 21. Nd4 {[%emt 0:00:30]} a6 {[%emt 0:00:30]} 22. Re2 {[%emt 0:01:30]} Ne5 {[%emt 0:00:30] [#]} 23. Rxe5 $1 {[%emt 0:02:30]} Qxe5 {[%emt 0:00:30]} 24. Nc6 $1 {[%emt 0:00:30] Double Attack} Qc7 {[%emt 0:01:30]} 25. Nxb8 {[%emt 0:00:30]} Rxb8 {[%emt 0:00:30]} 26. Re1 {[%emt 0:01:30]} Rd8 {[%emt 0:01:30]} (26... a5 $14) 27. Qd4 {[%emt 0:00:30]} (27. a4 $16) 27... h6 {[%emt 0:00:30]} 28. f4 {[%emt 0:01:30]} Qd7 {[%emt 0:06:30]} 29. a3 $14 {[%emt 0:01:30]} 1/2-1/2

[Event "29th CRO-chT Junior 2020"]
[Site "Cakovec"]
[Date "2020.07.16"]
[Round "6.4"]
[White "Zekic, Patrik"]
[Black "Kresic, Vid"]
[Result "1-0"]
[ECO "E49"]
[WhiteElo "1699"]
[BlackElo "1216"]
[Annotator "NA RC"]
[PlyCount "41"]
[EventDate "2020.07.14"]
[EventType "team-tourn"]
[EventCountry "CRO"]
[SourceTitle "playchess.com"]
[Source "ChessBase"]
[SourceQuality "1"]
[TimeControl "5400+30"]

1. d4 {[%emt 0:02:30]} d5 {[%emt 0:00:30]} 2. c4 {[%emt 0:00:30]} e6 {[%emt 0:00:30]} 3. Nc3 {[%emt 0:00:00]} Bb4 {[%emt 0:00:30]} 4. e3 {[%emt 0:02:00]} Nf6 {[%emt 0:00:30]} 5. Bd3 {[%emt 0:01:30]} c5 {[%emt 0:00:30]} 6. Nge2 {[%emt 0:03:30]} O-O {[%emt 0:00:30]} 7. O-O {[%emt 0:00:00]} Nc6 {[%emt 0:00:30]} 8. a3 {[%emt 0:02:00]} Bxc3 {[%emt 0:01:30]} 9. bxc3 {[%emt 0:00:30]} a6 {[%emt 0:00:30]} 10. a4 {[%emt 0:02:30]} Bd7 {[%emt 0:02:30]} 11. Ba3 {[%emt 0:01:30]} Na5 {[%emt 0:02:30]} 12. cxd5 {[%emt 0:10:30]} exd5 {[%emt 0:01:30]} 13. Bxc5 {[%emt 0:00:30]} Re8 {[%emt 0:00:30]} 14. Rb1 {[%emt 0:00:30]} Qc7 {[%emt 0:03:30]} 15. Bb6 {[%emt 0:01:30]} Qd6 {[%emt 0:02:30]} 16. Bxa5 {[%emt 0:00:30]} Bc6 {[%emt 0:01:30]} 17. Ng3 {[%emt 0:04:30]} h6 {[%emt 0:01:30]} 18. c4 {[%emt 0:01:30]} Rac8 {[%emt 0:02:30]} 19. Qb3 {[%emt 0:05:30]} Qd7 {[%emt 0:00:30]} 20. Bf5 {[%emt 0:01:30]} Re6 {[%emt 0:02:30]} 21. Bxe6 {[%emt 0:01:30]} 1-0

[Event "29th CRO-chT Junior 2020"]
[Site "Cakovec"]
[Date "2020.07.16"]
[Round "6.8"]
[White "Jaksic, Josip"]
[Black "Colev, Ivor"]
[Result "0-1"]
[ECO "B85"]
[WhiteElo "1616"]
[BlackElo "1893"]
[Annotator "NA RC"]
[PlyCount "72"]
[EventDate "2020.07.14"]
[EventType "team-tourn"]
[EventCountry "CRO"]
[SourceTitle "playchess.com"]
[Source "ChessBase"]
[SourceQuality "1"]
[TimeControl "5400+30"]

1. e4 {[%emt 0:00:30]} c5 {[%emt 0:00:30]} 2. Nf3 {[%emt 0:00:00]} d6 {[%emt 0:00:00]} 3. d4 {[%emt 0:00:00]} cxd4 {[%emt 0:00:00]} 4. Nxd4 {[%emt 0:00:30]} Nf6 {[%emt 0:00:00]} 5. Nc3 {[%emt 0:00:00]} e6 {[%emt 0:00:00]} 6. Be2 {[%emt 0:00:00]} Nc6 {[%emt 0:00:30]} 7. Be3 {[%emt 0:00:30]} Be7 {[%emt 0:00:00]} 8. O-O {[%emt 0:00:30]} O-O {[%emt 0:00:00]} 9. f4 {[%emt 0:01:30]} Bd7 {[%emt 0:00:00]} 10. Nb3 {[%emt 0:00:30]} a6 {[%emt 0:02:00]} 11. a4 {[%emt 0:00:00]} b6 {[%emt 0:00:30]} 12. Bf3 {[%emt 0:00:00]} Rb8 {[%emt 0:02:30]} 13. Qe2 {[%emt 0:01:30]} Qc8 {[%emt 0:05:30] B85: Sicilian Scheveningen: 6 Be2 a6, lines with early Be3.} 14. Kh1 {[%emt 0:05:30]} Rd8 {[%emt 0:08:30] [#]} 15. g4 $146 {[%emt 0:08:30]} ({Predecessor:} 15. Qf2 Qc7 16. g4 Be8 17. g5 Nd7 18. Bg2 b5 19. axb5 axb5 20. Qe2 b4 21. Nd5 exd5 22. exd5 {1-0 (37) Postypalskiy,M (2350)-Shishkova,O (2136) Odoev 2018}) 15... Be8 {[%emt 0:07:30]} 16. f5 {[%emt 0:16:30]} Ne5 {[%emt 0:14:30]} (16... exf5 $11 {keeps the balance.} 17. exf5 h6) 17. g5 {[%emt 0:15:30]} Nfd7 {[%emt 0:00:30]} 18. Nd4 {[%emt 0:00:30]} Nc5 {[%emt 0:13:30]} 19. Bg4 {[%emt 0:02:30]} (19. Bg2 $16) 19... Bd7 {[%emt 0:08:30]} 20. f6 {[%emt 0:16:30]} Bf8 $1 {[%emt 0:01:30]} 21. Bh5 {[%emt 0:03:30]} (21. Bh3 $11) 21... Bc6 {[%emt 0:16:03]} (21... g6 $17 22. Bf3 b5 23. axb5 Nxf3 24. Nxf3 (24. Rxf3 $2 axb5 25. b4 e5 $19) 24... axb5 25. Bxc5 dxc5) 22. Bf4 {[%emt 0:06:32]} Ng6 {[%emt 0:02:55]} 23. Bg3 {[%emt 0:02:18]} Bb7 {[%emt 0:04:52]} 24. Rae1 {[%emt 0:01:37]} ({White should try} 24. Qf3 $16) 24... Qd7 {[%emt 0:02:24]} (24... b5 $11) 25. Qf2 {[%emt 0:01:36]} (25. b4 $14 Nxa4 26. Nxa4 Qxa4 27. Nxe6) 25... Rbc8 {[%emt 0:04:05]} 26. b4 {[%emt 0:04:45]} Nd3 {[%emt 0:00:37]} 27. cxd3 {[%emt 0:00:37]} Rxc3 {[%emt 0:00:09]} 28. Re3 {[%emt 0:03:09]} Rdc8 {[%emt 0:02:29]} 29. Kg1 $17 {[%emt 0:02:56]} (29. Ne2 $11 Rc2 30. Rf3) 29... Rc1 {[%emt 0:01:00]} 30. Bd1 {[%emt 0:00:58]} R1c7 {[%emt 0:01:43]} 31. h4 {[%emt 0:01:47]} Ne5 {[%emt 0:02:22]} 32. h5 {[%emt 0:02:32]} Rc1 {[%emt 0:00:44]} 33. Ne2 {[%emt 0:00:44]} Ng4 {[%emt 0:00:20]} 34. Qf3 {[%emt 0:00:33]} Nxe3 {[%emt 0:00:06]} 35. Qxe3 {[%emt 0:00:17]} R1c7 {[%emt 0:00:03]} 36. fxg7 {[%emt 0:00:34]} Bxg7 {[%emt 0:00:09]} 0-1